bitfinex-derivatives/quotes_BTCF0:USTF0_20250106
["timestamp","ask_amount","ask_price","bid_price","bid_amount"]
[1736193847053,0.20322622,102080.0,102070.0,0.049962]
[1736193848765,0.56402622,102080.0,102070.0,0.049962]
[1736193848967,0.048965,102070.0,102060.0,0.409769]
[1736193849157,0.14123022,102070.0,102060.0,0.409769]
[1736193850259,0.14223022,102070.0,102060.0,0.409769]
[1736193850860,0.14223022,102070.0,102060.0,0.048969]
[1736193851859,0.14223022,102070.0,102050.0,0.37318866]
[1736193852067,0.17323522,102060.0,102050.0,0.06136266]
[1736193852362,0.20373522,102060.0,102050.0,0.06136266]
[1736193852562,0.11147,102060.0,102050.0,0.06136266]
[1736193853159,0.11247,102060.0,102050.0,0.06136266]
[1736193853365,0.11247,102060.0,102050.0,0.42216266]
[1736193854168,0.11247,102060.0,102050.0,0.06136266]
[1736193854570,0.11247,102060.0,102050.0,0.42216266]
[1736193854956,0.11247,102060.0,102050.0,0.06136266]
[1736193855368,0.20473522,102060.0,102050.0,0.06136266]
[1736193856069,0.20473522,102060.0,102050.0,0.42216266]
[1736193856267,0.001,102060.0,102050.0,0.51442788]
[1736193856765,0.001,102060.0,102050.0,0.42216266]
[1736193857969,0.04997,102060.0,102050.0,0.42216266]
[1736193858569,0.14223522,102060.0,102050.0,0.42216266]
[1736193858872,0.26085185,102060.0,102050.0,0.42216266]
[1736193859074,0.29265185,102060.0,102050.0,0.42216266]
[1736193860270,0.20038663,102060.0,102050.0,0.42216266]
[1736193862578,0.31720669,102060.0,102050.0,0.42216266]
[1736193864078,0.22969006,102060.0,102050.0,0.42216266]
[1736193867277,0.14892006,102060.0,102050.0,0.51442788]
[1736193867475,0.11782006,102060.0,102050.0,0.51442788]
[1736193867677,0.11782006,102060.0,102050.0,0.6381931]
[1736193867878,0.17512944,102070.0,102060.0,0.04897]
[1736193868082,0.15484751,102070.0,102060.0,0.59430044]
[1736193868283,0.36227021,102090.0,102070.0,0.048966]
[1736193868284,0.15484751,102080.0,102070.0,0.048966]
[1736193868478,0.15484751,102080.0,102070.0,0.53443122]
[1736193868986,0.20380851,102080.0,102070.0,0.53443122]
[1736193869281,0.29607373,102080.0,102070.0,0.409766]
[1736193869485,0.65687373,102080.0,102070.0,0.048966]
[1736193869787,0.64861965,102080.0,102070.0,0.048966]
[1736193869988,0.55635443,102080.0,102070.0,0.048966]
[1736193870278,0.19555443,102080.0,102070.0,0.048966]
[1736193870468,0.19555443,102080.0,102070.0,0.410766]
[1736193870879,0.19655443,102080.0,102070.0,0.410766]
[1736193871080,0.049961,102080.0,102070.0,0.410766]
[1736193872085,0.14222622,102080.0,102070.0,0.049966]
[1736193872271,0.14222622,102080.0,102070.0,0.001]
[1736193872474,0.50302622,102080.0,102070.0,0.001]
[1736193872871,0.50302622,102080.0,102070.0,0.0122362]
[1736193873279,0.14222622,102080.0,102070.0,0.0612022]
[1736193876086,0.17322622,102080.0,102070.0,0.0612022]
[1736193877789,0.53402622,102080.0,102070.0,0.0612022]
[1736193878089,0.17322622,102080.0,102070.0,0.0612022]
[1736193878288,0.53402622,102080.0,102070.0,0.0612022]
[1736193878695,0.20342622,102080.0,102070.0,0.0612022]
[1736193878891,0.56422622,102080.0,102070.0,0.0612022]
[1736193882594,0.441761,102080.0,102070.0,0.0612022]
[1736193883288,0.53402622,102080.0,102070.0,0.0612022]
[1736193884685,0.73745415,102080.0,102070.0,0.0612022]
[1736193887496,0.53402622,102080.0,102070.0,0.0612022]
[1736193889201,0.7100226,102080.0,102070.0,0.0612022]
[1736193890694,0.53402622,102080.0,102070.0,0.0612022]
[1736193894601,0.53402622,102080.0,102070.0,0.0122362]
[1736193894906,0.53402622,102080.0,102070.0,0.001]
[1736193895506,0.71013917,102080.0,102070.0,0.001]
[1736193896993,0.53402622,102080.0,102070.0,0.001]
[1736193897397,0.17322622,102080.0,102070.0,0.001]
[1736193897803,0.53402622,102080.0,102070.0,0.001]
[1736193898607,0.70530711,102080.0,102070.0,0.001]
[1736193900301,0.53402622,102080.0,102070.0,0.001]
[1736193901903,0.76651528,102080.0,102070.0,0.001]
[1736193902113,0.96994321,102080.0,102070.0,0.001]
[1736193902613,0.87767799,102080.0,102070.0,0.049965]
[1736193902912,0.96994321,102080.0,102070.0,0.049965]
[1736193903111,0.76651528,102080.0,102070.0,0.049965]
[1736193903703,0.76651528,102080.0,102070.0,0.001]
[1736193903903,0.76651528,102080.0,102070.0,0.049965]
[1736193906007,0.73961086,102080.0,102070.0,0.049965]
[1736193907013,0.70782435,102080.0,102070.0,0.049965]
[1736193907719,0.70782435,102080.0,102070.0,0.001]
[1736193907908,0.76830306,102080.0,102070.0,0.001]
[1736193908308,0.04897,102060.0,102050.0,0.59539074]
[1736193908518,0.16992742,102060.0,102050.0,0.59539074]
[1736193908910,0.16992742,102060.0,102050.0,0.23459074]
[1736193909109,0.14116393,102060.0,102040.0,0.9358952]
[1736193909317,0.19013393,102060.0,102040.0,0.9358952]
[1736193909516,0.048975,102050.0,102040.0,0.9358952]
[1736193910317,0.048975,102050.0,102040.0,0.94802504]
[1736193910519,0.19578169,102050.0,102040.0,0.65649658]
[1736193911113,0.19578169,102050.0,102040.0,0.65749658]
[1736193912621,0.19578169,102050.0,102040.0,0.42290584]
[1736193912915,0.28797562,102050.0,102040.0,0.42290584]
[1736193913122,0.28797562,102050.0,102040.0,0.37392984]
[1736193913423,0.31847562,102050.0,102040.0,0.37392984]
[1736193913612,0.34917562,102050.0,102040.0,0.37392984]
[1736193914408,0.37853696,102050.0,102040.0,0.01312984]
[1736193915020,0.73933696,102050.0,102040.0,0.01312984]
[1736193915217,0.73933696,102050.0,102040.0,0.002]
[1736193916117,0.73933696,102050.0,102020.0,0.64584695]
[1736193916318,0.14117793,102030.0,102020.0,0.64584695]
[1736193916529,0.14117793,102030.0,102020.0,0.64437674]
[1736193916823,0.17397793,102030.0,102020.0,0.64437674]
[1736193917022,0.17397793,102030.0,102020.0,0.409786]
[1736193917023,0.32056687,102030.0,102020.0,0.409786]
[1736193917340,0.32056687,102030.0,102020.0,0.417786]
[1736193917626,0.32056687,102030.0,102020.0,0.412786]
[1736193917821,0.32056687,102030.0,102020.0,0.417786]
[1736193918127,0.32056687,102030.0,102020.0,0.42897886]
[1736193918712,0.14658894,102030.0,102020.0,0.52117279]
[1736193918916,0.14658894,102030.0,102020.0,0.58477279]
[1736193920020,0.08783533,102030.0,102020.0,0.58477279]
[1736193920220,0.08783533,102030.0,102020.0,0.52117279]
[1736193924331,0.08783533,102040.0,102030.0,0.048984]
[1736193924533,0.08783533,102040.0,102030.0,0.409784]
[1736193925730,0.08783533,102040.0,102030.0,0.410784]
[1736193926131,0.08783533,102040.0,102030.0,0.411784]
[1736193926440,0.08783533,102040.0,102030.0,0.59617186]
[1736193926628,0.08783533,102040.0,102030.0,0.69107186]
[1736193926828,0.17688894,102050.0,102030.0,0.69107186]
[1736193927029,0.17688894,102050.0,102040.0,0.50197293]
[1736193927922,0.0303,102050.0,102040.0,0.50197293]
[1736193929422,0.0313,102050.0,102040.0,0.50197293]
[1736193929632,0.23636484,102050.0,102040.0,0.50197293]
[1736193929838,0.20606484,102050.0,102040.0,0.50197293]
[1736193930137,0.20506484,102050.0,102040.0,0.50297293]
[1736193930336,0.20506484,102050.0,102040.0,0.50397293]
[1736193935844,0.20506484,102060.0,102040.0,1.32667852]
[1736193936046,0.20506484,102060.0,102050.0,0.50196893]
[1736193936235,0.29725877,102060.0,102050.0,0.409775]
[1736193937136,0.29825877,102060.0,102050.0,0.409775]
[1736193937536,0.11817991,102060.0,102050.0,0.50196893]
[1736193939042,0.11917991,102060.0,102050.0,0.50196893]
[1736193940044,0.20704447,102060.0,102050.0,0.50196893]
[1736193943341,0.20704447,102060.0,102050.0,0.68796286]
[1736193943542,0.20704447,102060.0,102050.0,0.59576893]
[1736193944643,0.11917991,102060.0,102050.0,0.77142736]
[1736193944849,0.002,102060.0,102050.0,0.77142736]
[1736193946652,0.002,102060.0,102050.0,1.0060181]
[1736193947255,0.002,102060.0,102050.0,0.9423181]
[1736193948847,0.002,102060.0,102050.0,0.82002417]
[1736193949351,0.08986456,102060.0,102050.0,0.82002417]
[1736193949743,0.08986456,102060.0,102050.0,0.9122181]
[1736193950855,0.20704447,102060.0,102050.0,0.67762736]
[1736193953148,0.20704447,102060.0,102050.0,0.58543343]
[1736193953851,0.2992384,102060.0,102050.0,0.58543343]
[1736193954158,0.35796278,102060.0,102050.0,0.409775]
[1736193955654,0.24078287,102060.0,102050.0,0.409775]
[1736193955855,0.28975287,102060.0,102050.0,0.048975]
[1736193957061,0.048975,102050.0,102040.0,0.59629818]
[1736193957262,0.23756893,102050.0,102040.0,0.59629818]
[1736193957655,0.23756893,102050.0,102040.0,0.83088892]
[1736193958354,0.23756893,102050.0,102040.0,0.83188892]
[1736193958753,0.23756893,102050.0,102040.0,0.83288892]
[1736193958959,0.23756893,102050.0,102040.0,0.83188892]
[1736193959161,0.23856893,102050.0,102040.0,0.83188892]
[1736193959355,0.38622288,102050.0,102040.0,0.42063975]
[1736193960260,0.38622288,102050.0,102040.0,0.05983975]
[1736193961559,1.88622288,102050.0,102040.0,0.05983975]
[1736193961953,0.38622288,102050.0,102040.0,0.05983975]
[1736193962864,0.56239091,102050.0,102040.0,0.05983975]
[1736193963361,0.56239091,102050.0,102040.0,0.42063975]
[1736193964254,0.24505395,102050.0,102040.0,0.42063975]
[1736193964765,0.33724788,102050.0,102040.0,0.42063975]
[1736193965961,0.45444535,102050.0,102040.0,0.42063975]
[1736193966353,0.36225142,102050.0,102040.0,0.42063975]
[1736193966559,0.29835142,102050.0,102040.0,0.51283368]
[1736193967069,0.29835142,102050.0,102040.0,0.42063975]
[1736193967452,0.18115395,102050.0,102040.0,0.59629818]
[1736193968865,0.0345,102050.0,102040.0,0.68849211]
[1736193969464,0.002,102050.0,102040.0,0.68849211]
[1736193970463,0.14465395,102060.0,102050.0,0.048975]
[1736193970652,0.20846803,102070.0,102050.0,0.048975]
[1736193970653,7.2e-07,102070.0,102050.0,0.68806286]
[1736193970856,7.2e-07,102070.0,102060.0,0.59415786]
[1736193972059,0.00200072,102070.0,102060.0,0.59415786]
[1736193972259,0.08988065,102070.0,102060.0,1.00440703]
[1736193973152,0.08988065,102070.0,102060.0,0.9122131]
[1736193973354,0.09188065,102070.0,102060.0,0.63634429]
[1736193973767,0.12208065,102070.0,102060.0,0.72853822]
[1736193973959,0.12208065,102070.0,102060.0,0.63634429]
[1736193974160,0.24647458,102070.0,102060.0,0.46068586]
[1736193974359,0.32673958,102070.0,102060.0,0.46068586]
[1736193975665,0.04897,102060.0,102050.0,0.28356374]
[1736193975868,0.14116393,102060.0,102050.0,0.28356374]
[1736193976160,0.50196393,102060.0,102050.0,0.28356374]
[1736193976370,0.59415786,102060.0,102050.0,0.23459074]
[1736193976766,0.048975,102050.0,102040.0,0.47013113]
[1736193976957,0.20206893,102050.0,102040.0,0.47013113]
[1736193977863,0.20206893,102050.0,102040.0,0.47113113]
[1736193978468,0.20206893,102050.0,102040.0,0.06083575]
[1736193979464,0.20206893,102050.0,102040.0,0.06283575]
[1736193979859,0.20406893,102050.0,102040.0,0.06083575]
[1736193980053,0.20406893,102050.0,102040.0,0.05983575]
[1736193980262,0.20406893,102050.0,102040.0,0.06083575]
[1736193980464,0.20406893,102050.0,102040.0,0.049975]
[1736193980965,0.20406893,102050.0,102040.0,0.048975]
[1736193982965,0.048979,102040.0,102030.0,0.17570464]
[1736193983169,0.50197293,102040.0,102030.0,0.22468864]
[1736193983463,0.50197293,102040.0,102030.0,0.04092571]
[1736193984161,0.50197293,102040.0,102030.0,0.04192571]
[1736193984668,0.14117293,102040.0,102030.0,0.04192571]
[1736193984865,0.15309393,102050.0,102030.0,0.31041067]
[1736193985063,0.109877,102050.0,102040.0,0.409779]
[1736193985267,0.109877,102050.0,102040.0,0.048979]
[1736193985461,0.109877,102050.0,102040.0,0.409779]
[1736193985764,0.20207093,102050.0,102040.0,0.409779]
[1736193985962,0.56287093,102050.0,102040.0,0.048979]
[1736193986162,0.56487093,102050.0,102040.0,0.048979]
[1736193986574,0.20207093,102050.0,102040.0,0.048979]
[1736193986770,0.20407093,102050.0,102040.0,0.048979]
[1736193987367,0.20607093,102050.0,102040.0,0.048979]
[1736193988066,0.20407093,102050.0,102040.0,0.048979]
[1736193989675,0.20407093,102050.0,102040.0,0.409779]
[1736193989973,0.50846662,102050.0,102040.0,0.409779]
[1736193991965,0.20407093,102050.0,102040.0,0.409779]
[1736193993777,0.20407093,102050.0,102040.0,0.42024115]
[1736193995069,0.20407093,102050.0,102040.0,0.01046215]
[1736193995270,0.20407093,102050.0,102040.0,0.048979]
[1736193996565,0.20407093,102050.0,102040.0,0.409779]
[1736193997567,0.0321,102050.0,102040.0,0.50197293]
[1736193997771,0.002,102050.0,102040.0,0.50197293]
[1736193998175,0.002,102050.0,102040.0,0.409779]
[1736193998771,0.08985436,102050.0,102040.0,0.409779]
[1736193998971,0.44322505,102050.0,102040.0,0.409779]
[1736193999274,0.53541898,102050.0,102040.0,0.409779]
[1736193999672,0.56541898,102050.0,102040.0,0.409779]
[1736194000173,0.92621898,102050.0,102040.0,0.048979]
[1736194000676,0.95871898,102050.0,102040.0,0.048979]
[1736194001282,0.65432329,102050.0,102040.0,0.048979]
[1736194002176,0.29352329,102050.0,102040.0,0.048979]
[1736194002381,0.17846114,102050.0,102040.0,0.409779]
[1736194003277,0.14846114,102050.0,102040.0,0.409779]
[1736194003479,0.14746114,102050.0,102040.0,0.50197293]
[1736194003673,0.001,102050.0,102040.0,0.50197293]
[1736194004073,0.001,102050.0,102040.0,0.55095193]
[1736194004974,0.08896217,102050.0,102040.0,0.78554267]
[1736194006280,0.08896217,102050.0,102040.0,1.14148907]
[1736194011277,0.08896217,102050.0,102040.0,0.78506396]
[1736194011988,0.08896217,102050.0,102040.0,0.69287003]
[1736194012486,0.12006217,102050.0,102040.0,0.69287003]
[1736194013889,0.12006217,102050.0,102040.0,0.78506396]
[1736194016180,0.08896217,102050.0,102040.0,0.78506396]
[1736194016790,0.001,102050.0,102040.0,0.78506396]
[1736194019985,0.001,102050.0,102040.0,0.69287003]
[1736194021983,0.001,102050.0,102040.0,0.78506396]
[1736194022183,0.0889872,102050.0,102040.0,0.55095193]
[1736194022578,0.03649552,102050.0,102040.0,0.55095193]
[1736194022785,0.02660511,102050.0,102040.0,0.55095193]
[1736194023490,0.0611,102070.0,102040.0,1.15124155]
[1736194023491,0.20756114,102070.0,102040.0,1.15124155]
[1736194023683,0.20756114,102070.0,102060.0,0.40977]
[1736194023882,0.66055507,102070.0,102060.0,0.04897]
[1736194024187,0.70952007,102070.0,102060.0,0.04897]
[1736194024388,0.04897,102060.0,102050.0,0.409774]
[1736194024690,0.17156393,102060.0,102050.0,0.409774]
[1736194025081,0.17156393,102060.0,102050.0,0.28308982]
[1736194026292,0.53436393,102060.0,102050.0,0.28308982]
[1736194026684,0.773019,102060.0,102040.0,0.59399182]
[1736194026884,0.17216893,102050.0,102040.0,0.23319182]
[1736194027580,0.031,102050.0,102040.0,0.23319182]
[1736194028088,0.032,102050.0,102040.0,0.32538575]
[1736194028288,0.001,102050.0,102040.0,0.32538575]
[1736194028689,0.14746114,102050.0,102040.0,0.14116993]
[1736194029083,0.14746114,102050.0,102040.0,0.17126993]
[1736194029999,0.14846114,102050.0,102040.0,0.17126993]
[1736194030995,0.14846114,102050.0,102040.0,0.079076]
[1736194031687,0.26580678,102050.0,102040.0,0.17126993]
[1736194032498,0.26580678,102050.0,102040.0,0.048976]
[1736194032698,0.35800071,102050.0,102040.0,0.048976]
[1736194032995,0.42210071,102050.0,102040.0,0.048976]
[1736194033195,0.30475507,102050.0,102040.0,0.048976]
[1736194033393,0.35373007,102050.0,102040.0,0.048976]
[1736194033698,0.71453007,102050.0,102040.0,0.048976]
[1736194037099,0.56806893,102050.0,102040.0,0.048976]
[1736194037497,0.7437726,102050.0,102040.0,0.048976]
[1736194039194,0.20940367,102050.0,102040.0,0.50196993]
[1736194039495,0.17770367,102050.0,102040.0,0.50196993]
[1736194039701,0.17770367,102050.0,102040.0,0.53506993]
[1736194040503,0.11931715,102050.0,102040.0,0.53506993]
[1736194041903,0.002,102050.0,102040.0,1.11704021]
[1736194049913,0.002,102050.0,102040.0,0.53506993]
[1736194052421,0.002,102050.0,102040.0,1.11668032]
[1736194053005,0.11731715,102060.0,102050.0,0.048975]
[1736194053206,0.11731715,102060.0,102050.0,0.53406893]
[1736194053410,0.11731715,102060.0,102050.0,0.56626893]
[1736194053812,0.26396359,102070.0,102050.0,0.61524393]
[1736194054012,0.26396359,102070.0,102060.0,0.45299393]
[1736194054215,0.26396359,102070.0,102060.0,0.50196393]
[1736194054600,0.26396359,102070.0,102060.0,0.62425786]
[1736194054811,0.26396359,102070.0,102060.0,0.53206393]
[1736194055005,0.26596359,102070.0,102060.0,0.53206393]
[1736194055309,0.11931715,102070.0,102060.0,0.53206393]
[1736194056307,0.12631715,102070.0,102060.0,0.53306393]
[1736194056508,0.12731715,102070.0,102060.0,0.53306393]
[1736194057309,0.12731715,102070.0,102060.0,0.50296393]
[1736194059314,0.12731715,102070.0,102060.0,0.51291142]
[1736194059707,0.12731715,102070.0,102060.0,0.42071749]
[1736194060216,0.15831715,102070.0,102060.0,0.42071749]
[1736194060817,0.20728215,102070.0,102060.0,0.42071749]
[1736194061116,0.23978215,102070.0,102060.0,0.05991749]
[1736194061819,0.23978215,102070.0,102060.0,0.42071749]
[1736194064709,0.19081715,102070.0,102060.0,0.42071749]
[1736194065526,0.33746359,102070.0,102060.0,0.42071749]
[1736194066312,0.33746359,102070.0,102060.0,0.05991749]
[1736194068823,0.22014644,102070.0,102060.0,0.05991749]
[1736194069924,0.36130437,102070.0,102060.0,0.05991749]
[1736194071612,0.21465793,102070.0,102060.0,0.05991749]
[1736194074114,0.57545793,102070.0,102060.0,0.01094749]
[1736194074319,0.57545793,102070.0,102060.0,0.001]
[1736194074726,0.048974,102050.0,102040.0,0.34162077]
[1736194074919,0.14116793,102050.0,102040.0,0.29264477]
[1736194075119,0.50196793,102050.0,102040.0,0.29264477]
[1736194075318,0.474574,102050.0,102040.0,0.29264477]
[1736194075523,0.56676793,102050.0,102040.0,0.29264477]
[1736194075923,0.56776793,102050.0,102040.0,0.34162377]
[1736194076119,0.56776793,102050.0,102040.0,0.048979]
[1736194076120,0.7434716,102050.0,102040.0,0.048979]
[1736194077223,0.7434716,102050.0,102040.0,0.05925003]
[1736194077637,0.56776793,102050.0,102040.0,0.05925003]
[1736194077931,0.71441907,102050.0,102040.0,0.05925003]
[1736194079130,0.71441907,102050.0,102040.0,0.048979]
[1736194081634,0.09219393,102040.0,102030.0,0.05044876]
[1736194081827,0.12429393,102040.0,102030.0,0.05044876]
[1736194082027,1.67327293,102040.0,102030.0,0.05044876]
[1736194082223,1.67327293,102040.0,102030.0,0.06042611]
[1736194082423,0.17327293,102040.0,102030.0,0.06042611]
[1736194082630,0.12429393,102040.0,102030.0,0.06042611]
[1736194083034,0.12429393,102040.0,102030.0,0.06442611]
[1736194083535,0.24143768,102040.0,102030.0,0.06442611]
[1736194084339,0.29041668,102040.0,102030.0,0.06442611]
[1736194085429,0.25831668,102040.0,102030.0,0.06442611]
[1736194087733,0.25831668,102040.0,102030.0,0.01397735]
[1736194089632,0.25831668,102040.0,102030.0,0.06296135]
[1736194091942,0.25831668,102040.0,102030.0,0.06096135]
[1736194092140,0.25931668,102040.0,102030.0,0.05896135]
[1736194092537,0.25831668,102040.0,102030.0,0.05896135]
[1736194092731,0.25931668,102040.0,102030.0,0.05896135]
[1736194092937,0.26131668,102040.0,102030.0,0.05896135]
[1736194093244,0.26531668,102040.0,102030.0,0.05896135]
[1736194093639,0.26331668,102040.0,102030.0,0.05896135]
[1736194095141,0.25931668,102040.0,102030.0,0.05896135]
[1736194096251,0.26948664,102040.0,102030.0,0.05896135]
[1736194099343,0.77693778,102040.0,102030.0,0.05896135]
[1736194099852,2.27693778,102040.0,102030.0,0.05896135]
[1736194100645,2.15979403,102040.0,102030.0,0.05896135]
[1736194102155,0.14765114,102040.0,102030.0,0.05896135]
[1736194102343,0.23984507,102040.0,102030.0,0.05896135]
[1736194104452,0.14765114,102040.0,102030.0,0.05896135]
[1736194105452,0.14765114,102040.0,102030.0,0.29271031]
[1736194105749,0.23984507,102040.0,102030.0,0.29271031]
[1736194106555,0.23984507,102040.0,102030.0,0.35681031]
[1736194106954,0.09319393,102040.0,102030.0,0.35681031]
[1736194107953,0.001,102040.0,102030.0,0.35681031]
[1736194108458,0.22433368,102040.0,102030.0,0.92410023]
[1736194109958,0.17670367,102040.0,102030.0,0.74801031]
[1736194110755,0.17670367,102040.0,102030.0,0.84020424]
[1736194110961,0.17670367,102040.0,102030.0,0.93239817]
[1736194111257,0.4380737,102060.0,102050.0,0.048974]
[1736194111453,0.4380737,102060.0,102050.0,0.14116793]
[1736194111656,0.4380737,102060.0,102050.0,0.112874]
[1736194112349,0.4420737,102060.0,102050.0,0.112874]
[1736194112755,0.4500737,102060.0,102050.0,0.113874]
[1736194113057,0.25098386,102060.0,102050.0,0.34762296]
[1736194113254,0.15878993,102060.0,102050.0,0.34762296]
[1736194114362,0.15878993,102060.0,102050.0,0.52329121]
[1736194114762,0.15878993,102060.0,102050.0,0.61548514]
[1736194114964,0.15878993,102060.0,102050.0,0.97628514]
[1736194115856,0.12928534,102060.0,102050.0,0.97628514]
[1736194116063,0.12928534,102060.0,102050.0,0.80061689]
[1736194116962,0.12928534,102060.0,102050.0,0.81072967]
[1736194119054,0.012,102060.0,102050.0,0.98614412]
[1736194120259,0.012,102060.0,102050.0,0.75239516]
[1736194120758,0.012,102060.0,102050.0,0.66020123]
[1736194121566,0.12928534,102060.0,102050.0,0.48478678]
[1736194122859,0.12928534,102060.0,102050.0,0.66020123]
[1736194123766,0.12928534,102060.0,102050.0,0.29940123]
[1736194123962,0.58227927,102060.0,102050.0,0.23550123]
[1736194124168,0.27044927,102060.0,102050.0,0.23550123]
[1736194124460,0.27044927,102060.0,102050.0,0.06008678]
[1736194124766,0.30214927,102060.0,102050.0,0.06008678]
[1736194126368,0.12928534,102060.0,102050.0,0.51308071]
[1736194126966,0.12928534,102060.0,102050.0,0.42088678]
[1736194127670,0.12928534,102060.0,102050.0,0.57448071]
[1736194128471,0.12928534,102060.0,102050.0,0.74989516]
[1736194128973,0.10666394,102060.0,102050.0,0.74989516]
[1736194129174,0.04027963,102060.0,102050.0,0.74989516]
[1736194129470,0.04027963,102060.0,102050.0,0.75459516]
[1736194130063,0.0331,102070.0,102050.0,0.75459516]
[1736194130272,0.0331,102070.0,102060.0,0.50196393]
[1736194131961,0.0341,102070.0,102060.0,0.50196393]
[1736194132669,0.0331,102070.0,102060.0,0.50296393]
[1736194135171,0.5090603,102080.0,102060.0,0.55193393]
[1736194135372,0.5090603,102080.0,102070.0,0.20445893]
[1736194136371,0.5090603,102080.0,102070.0,0.112265]
[1736194138169,0.5100603,102080.0,102070.0,0.112265]
[1736194138374,0.60225423,102080.0,102070.0,0.112265]
[1736194138573,0.60225423,102080.0,102070.0,0.048965]
[1736194139172,0.5100603,102080.0,102070.0,0.048965]
[1736194140070,0.5100603,102080.0,102070.0,0.31657338]
[1736194142580,0.5100603,102080.0,102070.0,0.22437945]
[1736194143773,0.5100603,102080.0,102070.0,0.2345056]
[1736194147878,0.60225423,102080.0,102070.0,0.2345056]
[1736194148181,0.63515423,102080.0,102070.0,0.2345056]
[1736194148784,0.68411423,102080.0,102070.0,0.07561445]
[1736194149083,0.68411423,102080.0,102070.0,0.02571445]
[1736194150681,0.048965,102070.0,102060.0,0.048968]
[1736194150888,0.14115893,102070.0,102060.0,0.048968]
[1736194151778,0.50195893,102070.0,102060.0,0.048968]
[1736194151972,0.56565893,102070.0,102060.0,0.05879564]
[1736194152180,0.74163852,102070.0,102060.0,0.05879564]
[1736194153383,0.74263852,102070.0,102060.0,0.05879564]
[1736194154186,0.74263852,102070.0,102060.0,0.048968]
[1736194156186,0.60147959,102070.0,102060.0,0.048968]
[1736194156581,0.74263852,102070.0,102060.0,0.048968]
[1736194160990,0.71093088,102070.0,102060.0,0.048968]
[1736194164287,2.21093088,102070.0,102060.0,0.048968]
[1736194168195,0.71093088,102070.0,102060.0,0.048968]
[1736194170395,0.35013088,102070.0,102060.0,0.409768]
[1736194170595,0.17697959,102070.0,102060.0,0.47025429]
[1736194170796,0.23746588,102070.0,102060.0,0.50045429]
[1736194170995,0.17697959,102070.0,102060.0,0.50045429]
[1736194171196,0.17697959,102070.0,102060.0,0.56094058]
[1736194171394,0.14765507,102070.0,102060.0,0.50045429]
[1736194174104,0.14765507,102070.0,102060.0,0.79468954]
[1736194174901,0.14765507,102070.0,102060.0,0.73420325]
[1736194175896,0.14765507,102070.0,102060.0,0.67371696]
[1736194176096,0.14765507,102070.0,102060.0,0.73420325]
[1736194177102,0.20814136,102070.0,102060.0,0.73420325]
[1736194182106,0.14765507,102070.0,102060.0,0.73420325]
[1736194183109,0.14765507,102070.0,102060.0,0.79468954]
[1736194190614,0.14665507,102070.0,102060.0,0.79468954]
[1736194191004,0.11732668,102070.0,102060.0,0.84365754]
[1736194191414,0.11732668,102070.0,102060.0,0.84565754]
[1736194191815,0.11732668,102070.0,102060.0,0.84865754]
[1736194192015,0.11732668,102070.0,102060.0,0.78817125]
[1736194192311,0.11732668,102070.0,102060.0,0.84865754]
[1736194192611,0.17781297,102070.0,102060.0,0.72768496]
[1736194192814,0.17781297,102070.0,102060.0,0.67871696]
[1736194193013,0.11732668,102070.0,102060.0,0.73920325]
[1736194193618,0.71587173,102080.0,102070.0,0.048963]
[1736194197021,0.60642544,102080.0,102070.0,0.048963]
[1736194197213,0.66691173,102080.0,102070.0,0.10944929]
[1736194197614,0.71587073,102080.0,102070.0,0.048963]
[1736194198320,0.74519525,102080.0,102070.0,0.048963]
[1736194198921,0.74519525,102080.0,102070.0,0.051963]
[1736194199219,0.74519525,102080.0,102070.0,0.053963]
[1736194199523,0.68470896,102080.0,102070.0,0.053963]
[1736194199717,0.74519525,102080.0,102070.0,0.053963]
[1736194200521,0.80568154,102080.0,102070.0,0.005]
[1736194201007,0.80568154,102080.0,102060.0,0.23374896]
[1736194201008,0.86616783,102080.0,102060.0,0.23374896]
[1736194201213,0.47024929,102070.0,102060.0,0.23374896]
[1736194201412,0.53073558,102070.0,102060.0,0.23374896]
[1736194201617,0.53073558,102070.0,102060.0,0.28271696]
[1736194202310,0.47024929,102070.0,102060.0,0.28271696]
[1736194202514,0.47024929,102070.0,102060.0,0.28971696]
[1736194202715,0.47024929,102070.0,102060.0,0.055968]
[1736194202918,0.47024929,102070.0,102060.0,0.059968]
[1736194203126,0.50194574,102070.0,102060.0,0.059968]
[1736194203625,0.50194574,102070.0,102060.0,0.055968]
[1736194203818,0.50194574,102070.0,102060.0,0.059968]
[1736194204228,0.67807438,102070.0,102060.0,0.059968]
[1736194205917,0.50194574,102070.0,102060.0,0.059968]
[1736194206522,0.51188966,102070.0,102060.0,0.059968]
[1736194208528,0.68790211,102070.0,102060.0,0.059968]
[1736194212726,0.68790211,102070.0,102060.0,0.011]
[1736194212923,0.048968,102060.0,102050.0,0.048972]
[1736194213124,0.69053348,102060.0,102050.0,0.048972]
[1736194214329,1.01316115,102060.0,102050.0,0.048972]
[1736194214721,1.01416115,102060.0,102050.0,0.057972]
[1736194214922,0.92197841,102060.0,102050.0,0.062972]
[1736194215725,0.77536319,102060.0,102050.0,0.062972]
[1736194216130,0.41456319,102060.0,102050.0,0.062972]
[1736194216927,1.91456319,102060.0,102050.0,0.062972]
[1736194217439,1.73855074,102060.0,102050.0,0.062972]
[1736194218633,1.88512335,102060.0,102050.0,0.062972]
[1736194220940,0.35462335,102060.0,102050.0,0.062972]
[1736194221345,0.32202335,102060.0,102050.0,0.062972]
[1736194221838,0.28872335,102060.0,102050.0,0.062972]
[1736194222032,0.19654061,102060.0,102050.0,0.062972]
[1736194222233,0.19654061,102060.0,102050.0,0.126072]
[1736194222635,0.14757261,102060.0,102050.0,0.57905474]
[1736194223737,0.09767261,102060.0,102050.0,0.57905474]
[1736194224336,0.20521882,102060.0,102050.0,0.8128037]
[1736194225346,0.15531882,102060.0,102050.0,0.8128037]
[1736194225547,0.09441882,102060.0,102050.0,0.8128037]
[1736194225855,0.19209143,102070.0,102050.0,1.10099692]
[1736194226053,0.19209143,102070.0,102060.0,0.50195074]
[1736194227054,0.19209143,102070.0,102060.0,0.53315074]
[1736194227251,0.09441882,102070.0,102060.0,0.7668997]
[1736194228042,0.09441882,102070.0,102060.0,0.7698997]
[1736194228252,0.54740156,102070.0,102060.0,0.32291696]
[1736194228554,0.26856456,102070.0,102060.0,0.29171696]
[1736194228754,0.62936456,102070.0,102060.0,0.29171696]
[1736194228954,0.62936456,102070.0,102060.0,0.24274896]
[1736194230057,0.53494574,102070.0,102060.0,0.24274896]
[1736194230449,0.71095819,102070.0,102060.0,0.009]
[1736194231056,0.71095819,102070.0,102060.0,0.057968]
[1736194232364,0.72093773,102070.0,102060.0,0.057968]
[1736194233059,0.36013773,102070.0,102060.0,0.057968]
[1736194238656,0.72093773,102070.0,102060.0,0.057968]
[1736194247367,0.36013773,102070.0,102060.0,0.057968]